fUSD/lending_fUSD_20250407
["ID","MTS","AMOUNT","RATE_DAILY","PERIOD"]
[357412989,1744051984704,-500.0,0.00044657,30]
[357412990,1744051984740,-693.21,0.00044657,30]
[357412991,1744051984774,-500.0,0.00044657,30]
[357412992,1744051984810,-500.0,0.00044657,30]
[357412993,1744051984848,-500.0,0.00044657,30]
[357412994,1744051984884,-747.07,0.00044657,30]
[357412995,1744051984918,-500.0,0.00044657,30]
[357412996,1744051984950,-500.0,0.00044657,30]
[357412997,1744051984986,-503.54,0.00044657,30]
[357412998,1744051985017,-500.0,0.00044657,30]
[357412999,1744051985050,-607.35,0.00044657,30]
[357413000,1744051985081,-500.0,0.00044657,30]
[357413001,1744051985115,-500.0,0.00044657,30]
[357413002,1744051985147,-500.0,0.00044657,30]
[357413003,1744051985180,-500.0,0.00044657,30]
[357413004,1744051985214,-559.02,0.00044657,30]
[357413005,1744051985246,-500.0,0.00044657,30]
[357413006,1744051985278,-321.47847855,0.00044657,30]
[357413007,1744051985310,-226.49096345,0.00044657,30]
[357413008,1744051985342,-500.0,0.00044657,30]
[357413009,1744051985373,-500.0,0.00044657,30]
[357413010,1744051985404,-500.0,0.00044657,30]
[357413011,1744051985435,-500.0,0.00044657,30]
[357413012,1744051985468,-500.0,0.00044657,30]
[357413013,1744051985499,-913.14,0.00044657,30]
[357413014,1744051985529,-500.0,0.00044657,30]
[357413015,1744051985560,-500.0,0.00044657,30]
[357413016,1744051985591,-675.02,0.00044657,30]
[357413017,1744051985622,-524.82,0.00044657,30]
[357413018,1744051985657,-500.0,0.00044657,30]
[357413019,1744051985689,-500.0,0.00044657,30]
[357413020,1744051985723,-500.0,0.00044657,30]
[357413021,1744051985755,-500.0,0.00044657,30]
[357413022,1744051985786,-500.0,0.00044657,30]
[357413023,1744051985819,-500.0,0.00044657,30]
[357413024,1744051985851,-500.0,0.00044657,30]
[357413025,1744051985882,-563.12,0.00044657,30]
[357413026,1744051985917,-500.0,0.00044657,30]
[357413027,1744051985949,-611.79,0.00044657,30]
[357413028,1744051985982,-806.75,0.00044657,30]
[357413029,1744051986014,-501.99,0.00044657,30]
[357413030,1744051986046,-518.14,0.00044657,30]
[357413031,1744051986080,-500.0,0.00044657,30]
[357413032,1744051986112,-500.0,0.00044657,30]
[357413033,1744051986144,-500.0,0.00044657,30]
[357413034,1744051986177,-500.0,0.00044657,30]
[357413035,1744051986209,-620.74,0.00044657,30]
[357413036,1744051986242,-1144.72,0.00044657,30]
[357413037,1744051986276,-624.3,0.00044657,30]
[357413038,1744051986309,-564.79,0.00044657,30]
[357413039,1744051986342,-629.75,0.00044657,30]
[357413040,1744051986375,-526.67,0.00044657,30]
[357413041,1744051986407,-500.0,0.00044657,30]
[357413042,1744051986442,-500.0,0.00044657,30]
[357413043,1744051986475,-500.0,0.00044657,30]
[357413044,1744051986506,-439.28417291,0.00044657,30]
[357413045,1744051986538,-500.0,0.00044657,30]
[357413046,1744051986571,-795.52,0.00044657,30]
[357413047,1744051986605,-500.0,0.00044657,30]
[357413048,1744051986642,-586.88699386,0.00044657,30]
[357413049,1744051986682,-582.07,0.00044657,30]
[357413050,1744051986719,-655.74,0.00044657,30]
[357413051,1744051986754,-500.0,0.00044657,30]
[357413052,1744051986789,-500.0,0.00044657,30]
[357413053,1744051986827,-500.0,0.00044657,30]
[357413054,1744051986861,-500.0,0.00044657,30]
[357413055,1744051986896,-620.9,0.00044657,30]
[357413056,1744051986933,-500.0,0.00044657,30]
[357413057,1744051986972,-500.0,0.00044657,30]
[357413058,1744051987006,-1926.37,0.00044657,30]
[357413059,1744051987039,-500.0,0.00044657,30]
[357413060,1744051987073,-500.0,0.00044657,30]
[357413061,1744051987107,-652.44,0.00044657,30]
[357413062,1744051987140,-500.0,0.00044657,30]
[357413063,1744051987173,-784.6,0.00044657,30]
[357413064,1744051987205,-919.96,0.00044657,30]
[357413065,1744051987240,-500.0,0.00044657,30]
[357413066,1744051987275,-500.0,0.00044657,30]
[357413067,1744051987309,-500.0,0.00044657,30]
[357413068,1744051987341,-500.0,0.00044657,30]
[357413069,1744051987373,-500.0,0.00044657,30]
[357413070,1744051987406,-500.0,0.00044657,30]
[357413071,1744051987438,-500.0,0.00044657,30]
[357413072,1744051987471,-560.36,0.00044657,30]
[357413073,1744051987502,-500.0,0.00044657,30]
[357413074,1744051987532,-500.0,0.00044657,30]
[357413075,1744051987562,-500.0,0.00044657,30]
[357413076,1744051987594,-500.0,0.00044657,30]
[357413077,1744051987817,-500.0,0.00044657,30]
[357413078,1744051987857,-500.0,0.00044657,30]
[357413079,1744051987889,-836.55,0.00044657,30]
[357413080,1744051987919,-500.0,0.00044657,30]
[357413081,1744051987951,-500.0,0.00044657,30]
[357413082,1744051987982,-862.42,0.00044657,30]
[357413083,1744051988012,-500.0,0.00044657,30]
[357413084,1744051988043,-500.0,0.00044657,30]
[357413085,1744051988074,-500.0,0.00044657,30]
[357413086,1744051988106,-592.28,0.00044657,30]
[357413087,1744051988137,-1065.99,0.00044657,30]
[357413088,1744051988171,-500.0,0.00044657,30]
[357413089,1744051988202,-592.16766812,0.00044657,30]
[357413090,1744051988235,-500.0,0.00044657,30]
[357413091,1744051988268,-500.0,0.00044657,30]
[357413092,1744051988302,-500.0,0.00044657,30]
[357413093,1744051988335,-858.61,0.00044657,30]
[357413094,1744051988368,-1373.81,0.00044657,30]
[357413095,1744051988400,-649.27,0.00044657,30]
[357413096,1744051988432,-564.57,0.00044657,30]
[357413097,1744051988465,-500.0,0.00044657,30]
[357413098,1744051988498,-916.41,0.00044657,30]
[357413099,1744051988529,-500.0,0.00044657,30]
[357413100,1744051988563,-891.4,0.00044657,30]
[357413101,1744051988596,-532.32,0.00044657,30]
[357413102,1744051988628,-500.0,0.00044657,30]
[357413103,1744051988660,-543.53,0.00044657,30]
[357413104,1744051988693,-790.17,0.00044657,30]
[357413105,1744051988725,-500.0,0.00044657,30]
[357413106,1744051988756,-833.66,0.00044657,30]
[357413107,1744051988790,-758.03,0.00044657,30]
[357413108,1744051988823,-503.31,0.00044657,30]
[357413109,1744051988855,-500.0,0.00044657,30]
[357413110,1744051988886,-500.0,0.00044657,30]
[357413111,1744051988918,-500.0,0.00044657,30]
[357413112,1744051988950,-500.0,0.00044657,30]
[357413113,1744051988983,-500.0,0.00044657,30]
[357413114,1744051989018,-1829.4,0.00044657,30]
[357413115,1744051989051,-500.0,0.00044657,30]
[357413116,1744051989085,-517.63,0.00044657,30]
[357413117,1744051989119,-500.0,0.00044657,30]
[357413118,1744051989154,-500.0,0.00044657,30]
[357413119,1744051989188,-845.67,0.00044657,30]
[357413120,1744051989223,-1074.38,0.00044657,30]
[357413121,1744051989257,-500.0,0.00044657,30]
[357413122,1744051989295,-500.0,0.00044657,30]
[357413123,1744051989332,-500.0,0.00044657,30]
[357413124,1744051989370,-558.47,0.00044657,30]
[357413125,1744051989406,-500.0,0.00044657,30]
[357413126,1744051989441,-523.06,0.00044657,30]
[357413127,1744051989476,-865.29,0.00044657,30]
[357413128,1744051989508,-854.08,0.00044657,30]
[357413129,1744051989540,-500.0,0.00044657,30]
[357413130,1744051989572,-691.38,0.00044657,30]
[357413131,1744051989603,-500.0,0.00044657,30]
[357413132,1744051989635,-553.19,0.00044657,30]
[357413133,1744051989666,-560.87,0.00044657,30]
[357413134,1744051989699,-500.0,0.00044657,30]
[357413135,1744051989730,-500.0,0.00044657,30]
[357413136,1744051989761,-500.0,0.00044657,30]
[357413137,1744051989792,-628.94,0.00044657,30]
[357413138,1744051989823,-743.25,0.00044657,30]
[357413139,1744051989855,-500.0,0.00044657,30]
[357413140,1744051989887,-859.7,0.00044657,30]
[357413141,1744051989918,-500.0,0.00044657,30]
[357413142,1744051989949,-540.89,0.00044657,30]
[357413143,1744051989984,-839.96,0.00044657,30]
[357413144,1744051990017,-500.0,0.00044657,30]
[357413145,1744051990049,-863.6,0.00044657,30]
[357413146,1744051990080,-500.0,0.00044657,30]
[357413147,1744051990111,-790.05,0.00044657,30]
[357413148,1744051990144,-500.0,0.00044657,30]
[357413149,1744051990175,-381.63207444,0.00044657,30]
[357413150,1744051990205,-671.15,0.00044657,30]
[357413151,1744051990240,-500.0,0.00044657,30]
[357413152,1744051990273,-1494.76,0.00044657,30]
[357413153,1744051990304,-500.0,0.00044657,30]
[357413154,1744051990336,-500.0,0.00044657,30]
[357413155,1744051990367,-686.53,0.00044657,30]
[357413156,1744051990397,-500.0,0.00044657,30]
[357413157,1744051990427,-741.99,0.00044657,30]
[357413158,1744051990457,-788.7,0.00044657,30]
[357413159,1744051990488,-997.31,0.00044657,30]
[357413160,1744051990519,-500.0,0.00044657,30]
[357413161,1744051990550,-563.30575831,0.00044657,30]
[357413162,1744051990580,-773.73,0.00044657,30]
[357413163,1744051990611,-2057.62,0.00044657,30]
[357413164,1744051990641,-500.0,0.00044657,30]
[357413165,1744051990671,-500.0,0.00044657,30]
[357413166,1744051990701,-507.73168274,0.00044657,30]
[357413167,1744051990734,-651.98,0.00044657,30]
[357413168,1744051990764,-554.54,0.00044657,30]
[357413169,1744051990793,-682.23,0.00044657,30]
[357413170,1744051990823,-500.0,0.00044657,30]
[357413171,1744051990853,-627.6988131,0.00044657,30]
[357413172,1744051990883,-1655.78,0.00044657,30]
[357413173,1744051990912,-500.0,0.00044657,30]
[357413174,1744051990941,-620.57,0.00044657,30]
[357413175,1744051990971,-1132.12,0.00044657,30]
[357413176,1744051991001,-500.0,0.00044657,30]
[357413177,1744051991032,-917.62,0.00044657,30]
[357413178,1744051991063,-803.81,0.00044657,30]
[357413179,1744051991093,-545.03,0.00044657,30]
[357413180,1744051991123,-349.95224564,0.00044657,30]
[357413181,1744051991340,-500.0,0.00044657,30]
[357413182,1744051991371,-544.42956111,0.00044657,30]
[357413183,1744051991404,-500.0,0.00044657,30]
[357413184,1744051991436,-500.0,0.00044657,30]
[357413185,1744051991468,-500.0,0.00044657,30]
[357413186,1744051991500,-500.0,0.00044657,30]
[357413187,1744051991530,-500.0,0.00044657,30]
[357413188,1744051991560,-500.0,0.00044657,30]
[357413189,1744051991591,-841.78,0.00044657,30]
[357413190,1744051991622,-754.16,0.00044657,30]
[357413191,1744051991655,-500.0,0.00044657,30]
[357413192,1744051991687,-1044.52,0.00044657,30]
[357413193,1744051991720,-750.42,0.00044657,30]
[357413194,1744051991750,-500.0,0.00044657,30]
[357413195,1744051991780,-500.0,0.00044657,30]
[357413196,1744051991810,-1038.84,0.00044657,30]
[357413197,1744051991842,-2720.92,0.00044657,30]
[357413198,1744051991873,-485.46368116,0.00044657,30]
[357413199,1744051991905,-574.64,0.00044657,30]
[357413200,1744051991936,-1000.0,0.00044657,120]
[357413201,1744051991967,-500.0,0.00044657,30]
[357413202,1744051991998,-614.45,0.00044657,30]
[357413203,1744051992028,-500.0,0.00044657,30]
[357413204,1744051992058,-546.27,0.00044657,30]
[357413205,1744051992089,-1091.37,0.00044657,30]
[357413206,1744051992121,-1129.55,0.00044657,30]
[357413207,1744051992153,-500.0,0.00044657,30]
[357413208,1744051992185,-1169.11,0.00044657,30]
[357413209,1744051992221,-500.0,0.00044657,30]
[357413210,1744051992260,-350.66292618,0.00044657,30]
[357413211,1744051992297,-994.15,0.00044657,30]
[357413212,1744051992333,-500.0,0.00044657,30]
[357413213,1744051992368,-684.77,0.00044657,30]
[357413214,1744051992404,-928.97,0.00044657,30]
[357413215,1744051992441,-624.54,0.00044657,30]
[357413216,1744051992484,-3417.01,0.00044657,30]
[357413217,1744051992520,-500.0,0.00044657,30]
[357413218,1744051992554,-500.0,0.00044657,30]
[357413219,1744051992589,-500.0,0.00044657,30]
[357413220,1744051992625,-787.78,0.00044657,30]
[357413221,1744051992660,-637.81755734,0.00044657,30]
[357413222,1744051992695,-500.0,0.00044657,30]
[357413223,1744051992729,-500.0,0.00044657,30]
[357413224,1744051992761,-586.38,0.00044657,30]
[357413225,1744051992795,-1555.27,0.00044657,30]
[357413226,1744051992829,-894.85,0.00044657,30]
[357413227,1744051992860,-500.0,0.00044657,30]
[357413228,1744051992891,-500.0,0.00044657,30]
[357413229,1744051992924,-1566.53,0.00044657,30]
[357413230,1744051992956,-500.0,0.00044657,30]
[357413231,1744051992989,-1017.12,0.00044657,30]
[357413232,1744051993021,-658.49,0.00044657,30]
[357413233,1744051993053,-2431.64,0.00044657,30]
[357413234,1744051993084,-3642.2,0.00044657,30]
[357413235,1744051993117,-500.0,0.00044657,30]
[357413236,1744051993148,-500.0,0.00044657,30]
[357413237,1744051993181,-500.0,0.00044657,30]
[357413238,1744051993211,-500.0,0.00044657,30]
[357413239,1744051993244,-500.0,0.00044657,30]
[357413240,1744051993274,-500.0,0.00044657,30]
[357413241,1744051993305,-500.0,0.00044657,30]
[357413242,1744051993337,-648.63,0.00044657,30]
[357413243,1744051993371,-969.69,0.00044657,30]
[357413244,1744051993402,-500.0,0.00044657,30]
[357413245,1744051993434,-1025.53,0.00044657,30]
[357413246,1744051993465,-500.0,0.00044657,30]
[357413247,1744051993498,-1281.92,0.00044657,30]
[357413248,1744051993529,-690.83,0.00044657,30]
[357413249,1744051993560,-500.0,0.00044657,30]
[357413250,1744051993590,-551.0,0.00044657,30]
[357413251,1744051993623,-505.98,0.00044657,30]
[357413252,1744051993653,-500.0,0.00044657,30]
[357413253,1744051993685,-673.22,0.00044657,30]
[357413254,1744051993717,-500.0,0.00044657,30]
[357413255,1744051993750,-827.14,0.00044657,30]
[357413256,1744051993780,-560.69384747,0.00044657,30]
[357413257,1744051993811,-769.39,0.00044657,30]
[357413258,1744051993845,-500.0,0.00044657,30]
[357413259,1744051993876,-500.0,0.00044657,30]
[357413260,1744051993907,-500.0,0.00044657,30]
[357413261,1744051993938,-500.0,0.00044657,30]
[357413262,1744051993968,-632.43,0.00044657,30]
[357413263,1744051994000,-500.0,0.00044657,30]
[357413264,1744051994032,-500.0,0.00044657,30]
[357413265,1744051994065,-500.0,0.00044657,120]
[357413266,1744051994096,-500.0,0.00044657,30]
[357413267,1744051994127,-500.0,0.00044657,30]
[357413268,1744051994158,-500.0,0.00044657,30]
[357413269,1744051994191,-2133.48,0.00044657,30]
[357413270,1744051994224,-605.0,0.00044657,30]
[357413271,1744051994257,-500.0,0.00044657,30]
[357413272,1744051994289,-500.0,0.00044657,30]
[357413273,1744051994320,-500.0,0.00044657,30]
[357413274,1744051994351,-1758.91,0.00044657,30]
[357413275,1744051994383,-500.0,0.00044657,30]
[357413276,1744051994414,-1062.97,0.00044657,30]
[357413277,1744051994446,-500.0,0.00044657,30]
[357413278,1744051994478,-990.36,0.00044657,30]
[357413279,1744051994510,-1278.62,0.00044657,30]
[357413280,1744051994541,-508.94657864,0.00044657,30]
[357413281,1744051994717,-529.64,0.00044657,30]
[357413282,1744051994785,-500.0,0.00044657,30]
[357413283,1744051994819,-500.0,0.00044657,30]
[357413284,1744051994855,-1278.58,0.00044657,30]
[357413285,1744051994888,-428.48,0.00044657,30]
[357413286,1744051994919,-658.74,0.00044657,30]
[357413287,1744051994949,-864.3,0.00044657,30]
[357413288,1744051994980,-500.0,0.00044657,30]
[357413289,1744051995012,-671.96,0.00044657,30]
[357413290,1744051995045,-500.0,0.00044657,30]
[357413291,1744051995079,-777.78,0.00044657,30]
[357413292,1744051995112,-500.0,0.00044657,30]
[357413293,1744051995146,-525.95,0.00044657,30]
[357413294,1744051995177,-647.8,0.00044657,30]
[357413295,1744051995210,-500.0,0.00044657,30]
[357413296,1744051995248,-500.0,0.00044657,30]
[357413297,1744051995286,-500.0,0.00044657,30]
[357413298,1744051995326,-1210.14,0.00044657,30]
[357413299,1744051995365,-2067.85,0.00044657,30]
[357413300,1744051995401,-759.33,0.00044657,30]
[357413301,1744051995436,-912.89,0.00044657,30]
[357413302,1744051995469,-500.0,0.00044657,30]
[357413303,1744051995504,-500.0,0.00044657,30]
[357413304,1744051995539,-500.0,0.00044657,30]
[357413305,1744051995578,-1088.06,0.00044657,30]
[357413306,1744051995611,-176.29952703,0.00044657,30]
[357413307,1744051995643,-500.0,0.00044657,30]
[357413308,1744051995675,-500.0,0.00044657,30]
[357413309,1744051995709,-1520.39,0.00044657,30]
[357413310,1744051995741,-776.21,0.00044657,30]
[357413311,1744051995774,-1742.74,0.00044657,30]
[357413312,1744051995806,-500.0,0.00044657,30]
[357413313,1744051995839,-905.61,0.00044657,30]
[357413314,1744051995870,-619.3,0.00044657,30]
[357413315,1744051995901,-538.56,0.00044657,30]
[357413316,1744051995932,-1501.37,0.00044657,30]
[357413317,1744051995962,-500.0,0.00044657,30]
[357413318,1744051995995,-1039.98,0.00044657,30]
[357413319,1744051996026,-842.31,0.00044657,30]
[357413320,1744051996057,-500.0,0.00044657,30]
[357413321,1744051996089,-1485.97,0.00044657,30]
[357413322,1744051996122,-500.0,0.00044657,30]
[357413323,1744051996157,-500.0,0.00044657,30]
[357413324,1744051996190,-262.96223284,0.00044657,30]
[357413325,1744051996221,-525.94,0.00044657,30]
[357413326,1744051996255,-500.0,0.00044657,30]
[357413327,1744051996287,-500.0,0.00044657,30]
[357413328,1744051996318,-500.0,0.00044657,30]
[357413329,1744051996351,-500.0,0.00044657,30]
[357413330,1744051996383,-500.0,0.00044657,30]
[357413331,1744051996415,-588.54,0.00044657,30]
[357413332,1744051996447,-516.35,0.00044657,30]
[357413333,1744051996481,-497.53287676,0.00044657,30]
[357413334,1744051996512,-1174.4,0.00044657,30]
[357413335,1744051996543,-500.0,0.00044657,30]
[357413336,1744051996575,-1723.94,0.00044657,30]
[357413337,1744051996609,-500.0,0.00044657,30]
[357413338,1744051996641,-500.0,0.00044657,30]
[357413339,1744051996675,-243.14886882,0.00044657,30]
[357413340,1744051996708,-500.0,0.00044657,30]
[357413341,1744051996745,-500.0,0.00044657,30]
[357413342,1744051996780,-500.0,0.00044657,30]
[357413343,1744051996815,-500.0,0.00044657,30]
[357413344,1744051996851,-500.0,0.00044657,30]
[357413345,1744051996884,-500.0,0.00044657,30]
[357413346,1744051996918,-1127.23,0.00044657,30]
[357413347,1744051996952,-500.0,0.00044657,30]
[357413348,1744051996985,-500.0,0.00044657,30]
[357413349,1744051997021,-1253.55,0.00044657,30]
[357413350,1744051997055,-500.0,0.00044657,30]
[357413351,1744051997087,-585.99,0.00044657,30]
[357413352,1744051997120,-708.06,0.00044657,30]
[357413353,1744051997154,-541.94,0.00044657,30]
[357413354,1744051997187,-1247.49,0.00044657,30]
[357413355,1744051997219,-500.0,0.00044657,30]
[357413356,1744051997253,-698.66,0.00044657,30]
[357413357,1744051997286,-500.0,0.00044657,30]
[357413358,1744051997319,-500.0,0.00044657,30]
[357413359,1744051997351,-500.0,0.00044657,30]
[357413360,1744051997383,-574.7,0.00044657,30]
[357413361,1744051997417,-500.0,0.00044657,30]
[357413362,1744051997451,-500.0,0.00044657,30]
[357413363,1744051997484,-500.0,0.00044657,30]
[357413364,1744051997516,-1184.71,0.00044657,30]
[357413365,1744051997549,-636.15,0.00044657,30]
[357413366,1744051997586,-575.55,0.00044657,30]
[357413367,1744051997625,-591.74,0.00044657,30]
[357413368,1744051997661,-620.04,0.00044657,30]
[357413369,1744051997694,-500.0,0.00044657,30]
[357413370,1744051997728,-1671.53,0.00044657,30]
[357413371,1744051997759,-500.0,0.00044657,30]
[357413372,1744051997791,-500.0,0.00044657,30]
[357413373,1744051997826,-500.0,0.00044657,30]
[357413374,1744051997857,-500.0,0.00044657,30]
[357413375,1744051997886,-731.1,0.00044657,30]
[357413376,1744051997919,-500.0,0.00044657,30]
[357413377,1744051997952,-510.6,0.00044657,30]
[357413378,1744051998163,-534.02,0.00044657,30]
[357413379,1744051998199,-541.35,0.00044657,30]
[357413380,1744051998233,-1297.95,0.00044657,30]
[357413381,1744051998267,-570.19896143,0.00044657,30]
[357413382,1744051998299,-500.0,0.00044657,30]
[357413383,1744051998332,-11256.29,0.00044657,30]
[357413384,1744051998366,-500.0,0.00044657,30]
[357413385,1744051998399,-656.61,0.00044657,30]
[357413386,1744051998433,-500.0,0.00044657,30]
[357413387,1744051998468,-951.72,0.00044657,30]
[357413388,1744051998502,-500.0,0.00044657,30]
[357413389,1744051998536,-500.0,0.00044657,30]
[357413390,1744051998568,-500.0,0.00044657,30]
[357413391,1744051998601,-500.0,0.00044657,30]
[357413392,1744051998634,-1000.0,0.00044657,30]
[357413393,1744051998668,-500.0,0.00044657,30]
[357413394,1744051998701,-500.0,0.00044657,30]
[357413395,1744051998735,-508.10134485,0.00044657,30]
[357413396,1744051998767,-500.0,0.00044657,30]
[357413397,1744051998799,-867.49,0.00044657,30]
[357413398,1744051998834,-872.65,0.00044657,30]
[357413399,1744051998867,-1243.23,0.00044657,30]
[357413400,1744051998899,-666.84,0.00044657,30]
[357413401,1744051998931,-500.0,0.00044657,30]
[357413402,1744051998962,-500.0,0.00044657,30]
[357413403,1744051998993,-670.24,0.00044657,30]
[357413404,1744051999026,-823.7,0.00044657,30]
[357413405,1744051999058,-500.0,0.00044657,30]
[357413406,1744051999090,-500.0,0.00044657,30]
[357413407,1744051999124,-500.0,0.00044657,30]
[357413408,1744051999157,-855.31,0.00044657,30]
[357413409,1744051999190,-500.0,0.00044657,30]
[357413410,1744051999223,-500.0,0.00044657,30]
[357413411,1744051999258,-500.0,0.00044657,30]
[357413412,1744051999291,-1514.74,0.00044657,30]
[357413413,1744051999324,-500.0,0.00044657,30]
[357413414,1744051999359,-500.0,0.00044657,30]
[357413415,1744051999393,-999.0,0.00044684,30]
[357413416,1744051999428,-500.0,0.00044684,30]
[357413417,1744051999468,-773.0,0.00044684,30]
[357413418,1744051999503,-998.0,0.00044684,30]
[357413419,1744051999536,-1214.0,0.00044684,30]
[357413420,1744051999568,-831.0,0.00044684,30]
[357413421,1744051999600,-1532.0,0.00044684,30]
[357413422,1744051999631,-9860.0,0.00044684,30]
[357413423,1744051999664,-161.040803,0.00044698,120]
[357413424,1744051999697,-999.0,0.00044712,30]
[357413425,1744051999730,-500.0,0.00044712,30]
[357413426,1744051999762,-773.0,0.00044712,30]
[357413427,1744051999795,-998.0,0.00044712,30]
[357413428,1744051999831,-1214.0,0.00044712,30]
[357413429,1744051999866,-831.0,0.00044712,30]
[357413430,1744051999901,-1613.0,0.00044712,30]
[357413431,1744051999937,-1532.0,0.00044712,30]
[357413432,1744051999971,-9860.0,0.00044712,30]
[357413433,1744052000003,-154.32810467,0.00044712,120]
[357413434,1744052000036,-999.0,0.00044739,30]
[357413435,1744052000066,-500.0,0.00044739,30]
[357413436,1744052000097,-773.0,0.00044739,30]
[357413437,1744052000127,-998.0,0.00044739,30]
[357413438,1744052000161,-1214.0,0.00044739,30]
[357413439,1744052000199,-831.0,0.00044739,30]
[357413440,1744052000239,-1613.0,0.00044739,30]
[357413441,1744052000271,-9860.0,0.00044739,30]
[357413442,1744052000304,-999.0,0.00044767,30]
[357413443,1744052000336,-500.0,0.00044767,30]
[357413444,1744052000368,-773.0,0.00044767,30]
[357413445,1744052000400,-998.0,0.00044767,30]
[357413446,1744052000433,-1278.0,0.00044767,30]
[357413447,1744052000465,-831.0,0.00044767,30]
[357413448,1744052000499,-1613.0,0.00044767,30]
[357413449,1744052000530,-9860.0,0.00044767,30]
[357413450,1744052000563,-999.0,0.00044794,30]
[357413451,1744052000597,-868.83575063,0.00044794,30]
[357413452,1744052000628,-773.0,0.00044794,30]
[357413453,1744052000660,-998.0,0.00044794,30]
[357413454,1744052000697,-1278.0,0.00044794,30]
[357413455,1744052000732,-831.0,0.00044794,30]
[357413456,1744052000763,-1613.0,0.00044794,30]
[357413457,1744052000802,-9860.0,0.00044794,30]
[357413458,1744052000836,-163.04072,0.00044798,120]
[357413459,1744052000871,-999.0,0.00044821,30]
[357413460,1744052000907,-773.0,0.00044821,30]
[357413461,1744052000943,-998.0,0.00044821,30]
[357413462,1744052000978,-1278.0,0.00044821,30]
[357413463,1744052001012,-831.0,0.00044821,30]
[357413464,1744052001046,-1613.0,0.00044821,30]
[357413465,1744052001080,-9860.0,0.00044821,30]
[357413466,1744052001116,-999.0,0.00044849,30]
[357413467,1744052001155,-773.0,0.00044849,30]
[357413468,1744052001190,-998.0,0.00044849,30]
[357413469,1744052001224,-1278.0,0.00044849,30]
[357413470,1744052001260,-831.0,0.00044849,30]
[357413471,1744052001294,-1613.0,0.00044849,30]
[357413472,1744052001531,-9860.0,0.00044849,30]
[357413473,1744052001566,-999.0,0.00044876,30]
[357413474,1744052001598,-773.0,0.00044876,30]
[357413475,1744052001631,-998.0,0.00044876,30]
[357413476,1744052001663,-1278.0,0.00044876,30]
[357413477,1744052001696,-831.0,0.00044876,30]
[357413478,1744052001731,-1613.0,0.00044876,30]
[357413479,1744052001764,-9860.0,0.00044876,30]
[357413480,1744052001797,-1015.14838358,0.00044904,30]
[357413481,1744052001833,-781.41738814,0.00044904,30]
[357413482,1744052001865,-998.0,0.00044904,30]
[357413483,1744052001898,-1283.13939922,0.00044904,30]
[357413484,1744052001931,-842.99079523,0.00044904,30]
[357413485,1744052001963,-154.32810467,0.00044904,120]
[357413486,1744052001996,-916.409898,0.00044931,30]
[357413487,1744052002027,-167.546997,0.00044931,30]
[357413488,1744052002060,-158.644913,0.00044931,30]